{"text_format":"1","workbook":"xlsx","n_sheets":2,"sheets":["QUESTIONARIO","result"],"not_rendered":{"charts":0,"images":3,"macros":1,"external_links":0,"defined_names":1,"comments":1,"pivot_tables":0},"unopened":[],"bounds":{"document_bytes":16777216,"sheet_cells":100000,"rows_first":2000,"rows_last":500,"rows_between":2000,"halvings":0,"cell_chars":16384,"cell_head_chars":4096},"cells_cut":0,"cells_raw":0,"read":"whole","date_system":"1900"}

{"sheet":"QUESTIONARIO","index":0,"n_rows":703,"n_cols":22,"rows_kept":703,"cut":false,"hidden":false,"merged":[[37,3,37,19],[683,6,683,18],[44,3,44,19],[48,3,48,19],[52,3,52,19],[56,3,56,19],[60,3,60,19],[64,3,64,19],[68,3,68,19],[72,3,72,19],[76,3,76,19],[177,12,177,18],[175,7,175,18],[163,7,163,18],[270,3,271,19],[239,10,239,13],[246,4,247,18],[245,4,245,18],[258,1,259,18],[261,3,261,19],[122,1,123,18],[128,4,129,18],[135,7,135,18],[73,3,74,19],[2,0,2,19],[4,0,4,19],[6,0,6,19],[8,1,12,18],[13,1,17,18],[138,3,139,19],[144,4,145,18],[150,4,151,18],[157,1,158,18],[34,3,34,19],[45,3,46,19],[49,3,50,19],[53,3,54,19],[19,13,19,18],[21,13,21,18],[23,1,25,18],[27,1,28,18],[31,3,31,19],[61,3,62,19],[65,3,66,19],[69,3,70,19],[39,1,40,18],[42,1,42,19],[57,3,58,19],[77,3,78,19],[80,1,81,19],[84,2,89,18],[90,2,93,18],[94,2,97,18],[98,2,101,18],[102,2,105,18],[91,19,92,19],[95,19,96,19],[99,19,100,19],[277,1,279,18],[281,1,281,18],[211,8,211,18],[201,1,202,18],[222,7,222,18],[219,7,219,18],[225,7,225,18],[228,7,228,18],[230,10,230,13],[235,10,235,13],[274,3,275,19],[265,3,265,19],[269,3,269,19],[273,3,273,19],[262,3,263,19],[266,3,267,19],[343,3,343,19],[344,3,345,19],[347,1,347,18],[432,3,432,19],[433,3,434,19],[436,1,436,18],[485,3,485,19],[486,3,487,19],[489,1,489,18],[533,3,533,19],[648,3,648,19],[649,3,650,19],[633,14,633,17],[534,3,535,19],[537,1,537,18],[581,3,581,19],[582,3,583,19],[585,1,585,18],[699,3,700,19],[657,3,658,19],[661,3,662,19],[688,3,689,19],[652,1,654,18],[660,3,660,19],[667,4,668,18],[673,4,674,18],[687,3,687,19],[698,3,698,19]]}
[]
[]
["Questionário"]
[]
["Diagnóstico Tecnológico do Sector Corticeiro"]
[]
["Rolhas Naturais"]
[]
[null,"Alinhado numa das estratégias que a APCOR e CTCOR definiram para o ano em curso que visa a capacitação e inovação tecnológica do setor nas diferentes fases do processo produtivo e nos diferentes segmentos de produto, a APCOR está a desenvolver com a Universidade Católica do Porto um documento estratégico que terá como objetivo traçar ações e medidas que possam ajudar a aumentar a capacitação tecnológica do sector e desta forma, quer nas empresas quer do CTCOR, e, assim, contribuir para a construção de uma indústria de futuro.\n\nDe forma a suportar esse documento e definir os principais eixos estratégicos, a APCOR e o Centro Tecnológico da Cortiça estão a desenvolver um trabalho conjunto que visa realizar um Diagnóstico Tecnológico do Sector.\nDeste modo, está a ser preparado um questionário com várias temáticas que será a ferramenta fundamental para o levantamento do atual estado das nossas empresas face à dimensão tecnológica. Apelamos, desde já, à sua participação para que o sucesso deste trabalho seja uma realidade. deste trabalho e para o qual vamos pedir o seu apoio. \nA resposta ao questionário é totalmente confidencial, sendo apenas utilizados os dados agregados das respostas. \n \nAgradecemos, desde já, a sua disponibilidade e empenho na boa execução de mais um projeto em prol do sector."]
[]
[]
[]
[]
[null,"O questionário é composto por 3 secções: Atividades (iniciais) Transversais, Atividades Específicas e Atividades (finais) Transversais  (AITransversal, A1, A2, A3,… e AFTransversal).\n\nNenhuma das questões é de resposta obrigatória.\n\nQuando para determinada operação a empresa tiver mais do que uma tipologia de tecnologia disponível, deve assinalar-se a opção mais representativa na realidade da empresa\n\nSolicitar à empresa um email para posterior envio do pdf"]
[]
[]
[]
[]
[]
[null,"Código da empresa:"]
[]
[null,"Técnico CTCOR/APCOR responsável pelo questionário"]
[]
[null,"Atividades Transversais\n\nNas Atividades (iniciais) Transversais (AITx) encontrará perguntas de escolha múltipla e de resposta descritiva. \nNenhuma das questões é de resposta obrigatória."]
[]
[]
[]
[null,"AIT1 \nDados gerais da empresa"]
[]
[]
[null,null,null,"AIT1.1 - Produção média (estimada) anual de rolhas (número de rolhas)"]
[]
[]
[null,null,null,"AIT1.2 Número de trabalhadores"]
[]
[]
[null,null,null,"AIT1.3 Qual o número de trabalhadores do género feminino"]
[]
[]
[null,"AIT2 \nIndústria 4.0"]
[]
[]
[null,"AIT2.1 Que tecnologias de indústria 4.0 já estão implementadas na empresa? "]
[]
[null,null,null,"AIT2.1a Internet das coisas (Internet of Things - IoT) \n(não preencher em caso de não resposta; colocar \"não\" ou \"Sim\" e eventual info adicional)"]
[]
[]
[]
[null,null,null,"AIT2.1b Inteligência artificial\n(não preencher em caso de não resposta; colocar \"não\" ou \"Sim\" e eventual info adicional)"]
[]
[]
[]
[null,null,null,"AIT2.1c Realidade aumentada\n(não preencher em caso de não resposta; colocar \"não\" ou \"Sim\" e eventual info adicional)"]
[]
[]
[]
[null,null,null,"AIT2.1d Robótica\n(não preencher em caso de não resposta; colocar \"não\" ou \"Sim\" e eventual info adicional)"]
[]
[]
[]
[null,null,null,"AIT2.1e Sistema Ciberfísicos\n(não preencher em caso de não resposta; colocar \"não\" ou \"Sim\" e eventual info adicional)"]
[]
[]
[]
[null,null,null,"AIT2.1f Big data e análise de dados\n(não preencher em caso de não resposta; colocar \"não\" ou \"Sim\" e eventual info adicional)"]
[]
[]
[]
[null,null,null,"AIT2.1g Blockchain\n(não preencher em caso de não resposta; colocar \"não\" ou \"Sim\" e eventual info adicional)"]
[]
[]
[]
[null,null,null,"AIT2.1h Cloud Computing\n(não preencher em caso de não resposta; colocar \"não\" ou \"Sim\" e eventual info adicional)"]
[]
[]
[]
[null,null,null,"AIT2.1i Cibersegurança\n(não preencher em caso de não resposta; colocar \"não\" ou \"Sim\" e eventual info adicional)"]
[]
[]
[]
[null,"AIT2.2 Assinalar em que nível de automação a empresa se encontra segundo o modelo ISA95 (nível 0 a 4)"]
[]
[]
[]
[null,null,"Nível 4\nPlaneamento \nestratégico e logística"]
[]
[]
[]
[null,null,null,null,null,null,null,null,null,null,null,null,null,null,null,null,null,null,null,"+info    "]
[]
[null,null,"Nível 3\nGestão da produção"]
[null,null,null,null,null,null,null,null,null,null,null,null,null,null,null,null,null,null,null,"+info    "]
[]
[]
[null,null,"Nível 2\nMonitorização e supervisão"]
[null,null,null,null,null,null,null,null,null,null,null,null,null,null,null,null,null,null,null,"+info    "]
[]
[]
[null,null,"Nível 1\nControlo/sensorização"]
[null,null,null,null,null,null,null,null,null,null,null,null,null,null,null,null,null,null,null,"+info    "]
[]
[]
[null,null,"Nível 0\nProcesso produtivo "]
[]
[]
[]
[]
[]
[]
[]
[]
[]
[]
[]
[]
[]
[]
[]
[]
[null,null,null,"+info"]
[null,null,null,"+info"]
[]
[null,"AIT3 \nEconomia Circular"]
[]
[]
[]
[]
[]
[]
[]
[]
[]
[]
[]
[]
[]
[]
[null,null,null,"AIT3.3 A empresa tem um sistema de reciclagem implementado? Para que materiais  (mat. escritório,…)?"]
[]
[]
[]
[]
[]
[]
[]
[]
[]
[]
[]
[]
[]
[]
[]
[]
[]
[]
[]
[null,"AIT4 \nSustentabilidade ambiental"]
[]
[]
[]
[]
[]
[]
[]
[]
[]
[]
[]
[]
[]
[]
[]
[]
[]
[]
[]
[null,null,null,null,"Quantos litros de efluente gera mensalmente?"]
[]
[]
[]
[]
[]
[]
[]
[]
[]
[]
[]
[]
[]
[]
[]
[]
[null,null,null,"+info"]
[null,null,null,"+info"]
[]
[]
[]
[]
[]
[null,"AIT5 \nSustentabilidade energética"]
[]
[]
[]
[]
[]
[]
[]
[]
[]
[]
[]
[]
[]
[]
[]
[]
[]
[]
[]
[]
[]
[]
[]
[]
[]
[]
[]
[]
[null,null,null,"Qual a potência instalada (kW)",null,null,null,null,null,null,null,false,false,null,"kW"]
[]
[]
[]
[]
[null,null,null,null,null,null,null,null,null,null,null,false,false,null,"kW"]
[]
[]
[]
[null,null,null,null,null,null,null,null,null,null,null,false,false,null,"kW"]
[]
[]
[]
[]
[]
[null,null,null,null,"(especificar diferentes níveis em diferentes etapas)"]
[]
[]
[]
[]
[]
[]
[]
[]
[]
[]
[]
[]
[null,"AIT6 \nPrevenção, extração e deteção de compostos orgânicos voláteis"]
[]
[]
[null,null,null,"AIT6.1 A empresa possui sistema de extração de compostos orgânicos voláteis como 2,4,6-tricloroanisol (TCA)?\nSe sim, quantos e qual é o princípio do método associado (designação opcional).\nPor favor especificar que percentagem de rolhas são abrangidas por esse(s) método(s)."]
[]
[]
[]
[null,null,null,"AIT6.2 A empresa possuí processos preventivos relativamente à contaminação da cortiça com compostos orgânicos voláteis como 2,4,6-tricloroanisol (TCA). Se sim, quantos e qual é a designação comercial e o princípio do método associado.\nPor favor especificar que percentagem de rolhas são abrangidas por esse(s) método(s)."]
[]
[]
[]
[null,null,null,"AIT6.3 A empresa possuí sistema industrial de deteção individual de compostos orgânicos voláteis como 2,4,6-tricloroanisol (TCA) rolha-a-rolha? Se sim, quantos e qual é o princípio do método associado.\nPor favor especificar qual a percentagem de rolhas testadas."]
[]
[]
[]
[null,null,null,"Aspetos importantes que a empresa pretende referir\nIdentificar a Atividade (inicial) Transversal ao qual o comentário é feito utilizando o código (AITx)"]
[]
[]
[]
[null,"Atividades Específicas\n\nDeve ser escolhida a opção mais evoluída existente na empresa. Algumas operações têm mais do que um grupo de escolha múltipla.\nCada atividade é constituída por operações (O1, O2, O3,…) tendo por base o Código das Práticas Rolheiras.\nNenhuma das questões é de resposta obrigatória."]
[]
[]
[]
[null,"A1 - Preparação de cortiça"]
[]
[]
[]
[]
[]
[]
[]
[]
[]
[]
[]
[]
[]
[]
[]
[]
[]
[]
[]
[]
[]
[]
[]
[]
[]
[]
[null,null,null,"+info"]
[null,null,null,"+info"]
[]
[]
[]
[]
[]
[]
[]
[]
[]
[]
[]
[]
[]
[]
[]
[]
[]
[]
[]
[]
[]
[]
[]
[]
[]
[]
[]
[]
[]
[]
[]
[]
[]
[null,null,null,"Aspetos importantes que a empresa pretende referir\nIdentificar a atividade ou operação ao qual o cometário respeita."]
[]
[]
[]
[null,"A4 - Fabricação de rolhas de cortiça natural"]
[]
[]
[]
[]
[]
[]
[]
[]
[]
[null,null,null,"+info",null,null,null,null,null,null,null,null,null,null,null,null,null,null,null,null,null,1]
[null,null,null,"+info"]
[]
[]
[]
[]
[]
[]
[]
[]
[]
[]
[]
[]
[]
[]
[]
[]
[]
[]
[]
[]
[]
[]
[]
[]
[]
[]
[]
[]
[]
[]
[]
[]
[]
[]
[]
[]
[]
[]
[]
[]
[null,null,null,"+info"]
[null,null,null,"+info"]
[]
[]
[]
[]
[]
[]
[]
[]
[]
[]
[]
[]
[]
[]
[]
[]
[]
[]
[]
[]
[]
[]
[]
[]
[]
[]
[]
[]
[]
[]
[]
[null,null,null,"Aspetos importantes que a empresa pretende referir\nIdentificar a atividade ou operação ao qual o cometário respeita."]
[]
[]
[]
[null,"A10 - Lavação e secagem de rolhas / corpos para rolhas capsuladas"]
[]
[]
[]
[]
[]
[]
[]
[]
[]
[]
[]
[]
[]
[]
[]
[]
[]
[]
[]
[]
[]
[]
[]
[]
[]
[]
[]
[]
[]
[]
[]
[]
[]
[]
[]
[]
[]
[]
[]
[]
[]
[]
[]
[]
[]
[]
[]
[]
[null,null,null,"Aspetos importantes que a empresa pretende referir\nIdentificar a atividade ou operação ao qual o cometário respeita."]
[]
[]
[]
[null,"A11 - Colmatagem de rolhas"]
[]
[]
[]
[]
[]
[]
[]
[]
[]
[]
[]
[]
[]
[]
[]
[]
[]
[]
[]
[]
[]
[]
[]
[]
[]
[]
[]
[]
[]
[]
[]
[]
[]
[]
[]
[]
[]
[]
[]
[]
[]
[]
[]
[null,null,null,"Aspetos importantes que a empresa pretende referir\nIdentificar a atividade ou operação ao qual o cometário respeita."]
[]
[]
[]
[null,"A12 - Revestimento de rolhas"]
[]
[]
[]
[]
[]
[]
[]
[]
[]
[]
[]
[]
[]
[]
[]
[]
[]
[]
[]
[]
[]
[]
[]
[]
[]
[]
[]
[]
[]
[]
[]
[]
[]
[]
[]
[]
[]
[]
[]
[]
[]
[]
[]
[null,null,null,"Aspetos importantes que a empresa pretende referir\nIdentificar a atividade ou operação ao qual o cometário respeita."]
[]
[]
[]
[null,"A14 - Marcação e tratamento de superfície de rolhas"]
[]
[]
[]
[]
[]
[]
[]
[]
[]
[]
[]
[]
[]
[]
[]
[]
[]
[]
[]
[]
[]
[]
[]
[]
[]
[]
[]
[]
[]
[]
[]
[]
[]
[]
[]
[]
[]
[]
[]
[]
[]
[]
[]
[]
[]
[]
[]
[null,null,null,null,null,null,null,null,null,null,null,null,null,null,null,false,false,null,"%"]
[]
[]
[]
[]
[]
[]
[]
[]
[]
[]
[]
[]
[]
[]
[null,null,null,"Aspetos importantes que a empresa pretende referir\nIdentificar a atividade ou operação ao qual o cometário respeita."]
[]
[]
[]
[null,"Atividades Transversais finais\n\nNas Atividades (finais) Transversais (AFTx) encontrará perguntas de escolha múltipla e de resposta descritiva. \nNenhuma das questões é de resposta obrigatória."]
[]
[]
[]
[null,null,null,"AFT1 Que outras atividades a empresa realiza que não estão contempladas neste questionário?"]
[]
[]
[]
[null,null,null,"AFT2 Se não tivesse quaisquer limitações financeiras, quais seriam as 3 operações prioritárias para o investimento da empresa no seu apetrechamento tecnológico?"]
[]
[]
[]
[]
[]
[]
[]
[]
[]
[]
[]
[]
[]
[]
[]
[]
[]
[]
[]
[]
[]
[]
[]
[]
[]
[]
[null,null,null,"AFT6 Em que atividades / operações é que a empresa considera que a oferta tecnológica atualmente disponível no mercado não corresponde às necessidades que espera ter nos próximos anos? "]
[]
[]
[]
[]
[]
[]
[]
[]
[]
[]
[null,null,null,"Aspetos gerais importantes que a empresa pretende referir"]
[]
[]
[]
[null,null,null,null,null,null,null,null,null,null,null,null,null,null,null,null,null,null,null,"Obrigado pela sua colaboração!"]

{"sheet":"result","index":1,"n_rows":171,"n_cols":2,"rows_kept":171,"cut":false,"hidden":true,"merged":[]}
["Empresa",{"$f":"QUESTIONARIO!N20","v":0}]
["Técnico",{"$f":"QUESTIONARIO!N22","v":0}]
["AIT1.1",{"$f":"QUESTIONARIO!D32","v":0}]
["AIT1.2",{"$f":"QUESTIONARIO!D35","v":0}]
["AIT1.3",{"$f":"QUESTIONARIO!D38","v":0}]
["AIT2.1a",{"$f":"QUESTIONARIO!D46","v":0}]
["AIT2.1b",{"$f":"QUESTIONARIO!D50","v":0}]
["AIT2.1c",{"$f":"QUESTIONARIO!D54","v":0}]
["AIT2.1d",{"$f":"QUESTIONARIO!D58","v":0}]
["AIT2.1e",{"$f":"QUESTIONARIO!D62","v":0}]
["AIT2.1f",{"$f":"QUESTIONARIO!D66","v":0}]
["AIT2.1g",{"$f":"QUESTIONARIO!D70","v":0}]
["AIT2.1h",{"$f":"QUESTIONARIO!D74","v":0}]
["AIT2.1i",{"$f":"QUESTIONARIO!D78","v":0}]
["AIT2.2",0]
["AIT2.3",0]
["AIT3.1",0]
["AIT3.1_sim",{"$f":"QUESTIONARIO!E129","v":0}]
["AIT3.2"]
["AIT3.2_outro",{"$f":"QUESTIONARIO!H136","v":0}]
["AIT3.3",{"$f":"QUESTIONARIO!D139","v":0}]
["AIT3.4"]
["AIT3.4_sim",{"$f":"QUESTIONARIO!E145","v":0}]
["AIT3.5"]
["AIT3.5_sim",{"$f":"QUESTIONARIO!E151","v":0}]
["AIT3.6"]
["AIT4.1"]
["AIT4.1_outro",{"$f":"QUESTIONARIO!H164","v":0}]
["AIT4.2"]
["AIT4.3"]
["AIT4.3_outro",{"$f":"QUESTIONARIO!H176","v":0}]
["AIT4.3_qtd eflu",{"$f":"QUESTIONARIO!M178","v":0}]
["AIT4.4"]
["AIT4.5"]
["AIT4.6"]
["AIT4.7"]
["AIT4.8"]
["AIT5.1"]
["AIT5.2"]
["AIT5.2_não",{"$f":"QUESTIONARIO!I212","v":0}]
["AIT5.3"]
["AIT5.4"]
["AIT5.4_biomass",{"$f":"QUESTIONARIO!H220","v":0}]
["AIT5.4_outro",{"$f":"QUESTIONARIO!H223","v":0}]
["AIT5.5_biomass"]
["AIT5.5_biomass.qual",{"$f":"QUESTIONARIO!H226","v":0}]
["AIT5.5_fotovolt"]
["AIT5.5_termica"]
["AIT5.5_outro"]
["AIT5.5_outro.qual",{"$f":"QUESTIONARIO!H229","v":0}]
["AIT5.5_pot",{"$f":"QUESTIONARIO!K231","v":0}]
["AIT5.6"]
["AIT5.6_sim",{"$f":"QUESTIONARIO!K236","v":0}]
["AIT5.7"]
["AIT5.7_sim",{"$f":"QUESTIONARIO!K240","v":0}]
["AIT5.8"]
["AIT5.8_detail",{"$f":"QUESTIONARIO!E247","v":0}]
["AIT5.9"]
["AIT5.10"]
["AIT6.1",{"$f":"QUESTIONARIO!D263","v":0}]
["AIT6.2",{"$f":"QUESTIONARIO!D267","v":0}]
["AIT6.3",{"$f":"QUESTIONARIO!D271","v":0}]
["AIT_Observacoes",{"$f":"QUESTIONARIO!D275","v":0}]
["A1O1"]
["A1O2.1"]
["A1O2.2"]
["A1O2.3"]
["A1O3"]
["A1O4"]
["A1O5"]
["A1O6"]
["A1O7"]
["A1O8"]
["A1O9"]
["A1O_Observacoes",{"$f":"QUESTIONARIO!D345","v":0}]
["A4O1"]
["A4O2",0]
["A4O3"]
["A4O4"]
["A4O5"]
["A4O5_informat"]
["A4O5_costa"]
["A4O6"]
["A4O6_informat"]
["A4O7"]
["A4O8"]
["A4O8_topos"]
["A4O8_despoeir"]
["A4O8_informat"]
["A4O8_parametr"]
["A4O9"]
["A4O9_raiox"]
["A4O9_informat"]
["A4O10"]
["A4O11"]
["A4O12"]
["A4O12_vol"]
["A4O_Observacoes",{"$f":"QUESTIONARIO!D434","v":0}]
["A10O1"]
["A10O2"]
["A10O3"]
["A10O4"]
["A10O5"]
["A10O5_raiox"]
["A10O5_informat"]
["A10O6"]
["A10O7.1"]
["A10O7.2"]
["A10O7.2_vol"]
["A10O_Observacoes",{"$f":"QUESTIONARIO!D487","v":0}]
["A11O1"]
["A11O2"]
["A11O3"]
["A11O4"]
["A11O4_raiox"]
["A11O4_informat"]
["A11O5"]
["A11O6.1"]
["A11O6.2"]
["A11O6.2_vol"]
["A11O_Observacoes",{"$f":"QUESTIONARIO!D535","v":0}]
["A12O1"]
["A12O2"]
["A12O3"]
["A12O4"]
["A12O4_raiox"]
["A12O4_informat"]
["A12O5"]
["A12O6.1"]
["A12O6.2"]
["A12O6.2_vol"]
["A12O_Observacoes",{"$f":"QUESTIONARIO!D583","v":0}]
["A14O1"]
["A14O2"]
["A14O3"]
["A14O3_raiox"]
["A14O3_informat"]
["A14O4"]
["A14O4_informat"]
["A14O4_tinta"]
["A14O4_fogo"]
["A14O4_laser"]
["A14O4_fogo/eletr"]
["A14O4_indução"]
["A14O5"]
["A14O5_informat"]
["A14O6"]
["A14O6_cquali"]
["A14O6_informat"]
["A14O7"]
["A14O7_%",{"$f":"QUESTIONARIO!O634","v":0}]
["A14O8.1"]
["A14O8.2"]
["A14O8.2_vol"]
["A14O_Observacoes",{"$f":"QUESTIONARIO!D650","v":0}]
["AFT1",{"$f":"QUESTIONARIO!D658","v":0}]
["AFT2",{"$f":"QUESTIONARIO!D662","v":0}]
["AFT3"]
["AFT3_sim",{"$f":"QUESTIONARIO!E668","v":0}]
["AFT4"]
["AFT4_sim",{"$f":"QUESTIONARIO!E674","v":0}]
["AFT5_financeiras"]
["AFT5_soluções"]
["AFT5_gestao"]
["AFT5_operadores"]
["AFT5_desnecessar"]
["AFT5_outras"]
["AFT5_outras_desc",{"$f":"QUESTIONARIO!G684","v":0}]
["AFT6",{"$f":"QUESTIONARIO!D689","v":0}]
["AFT7"]
["Observações",{"$f":"QUESTIONARIO!D700","v":0}]